[Event "Nino Khurtsidze Memorial 2019"]
[Site "Vani"]
[Date "2019.09.18"]
[Round "7.3"]
[White "Arabidze, Meri"]
[Black "Javakhishvili, Lela"]
[Result "1/2-1/2"]
[ECO "E15"]
[WhiteElo "2398"]
[BlackElo "2458"]
[Annotator "ChessBase"]
[PlyCount "90"]
[EventDate "2019.09.17"]
[EventType "tourn"]
[EventCountry "GEO"]
[SourceTitle "playchess.com"]
[Source "ChessBase"]
[SourceQuality "1"]
[TimeControl "900+10"]

1. d4 {[%emt 0:00:00]} Nf6 {[%emt 0:00:00]} 2. c4 {[%emt 0:00:00]} e6 {[%emt 0:00:00]} 3. Nf3 {[%emt 0:00:00]} b6 {[%emt 0:00:00]} 4. g3 {[%emt 0:00:00]} Ba6 {[%emt 0:00:20]} 5. Qa4 {[%emt 0:00:00]} Bb7 {[%emt 0:00:07]} 6. Bg2 {[%emt 0:00:01]} c5 {[%emt 0:00:02]} 7. dxc5 {[%emt 0:00:03]} bxc5 {[%emt 0:00:01]} 8. O-O {[%emt 0:00:07]} Be7 {[%emt 0:00:04]} 9. Nc3 {[%emt 0:00:03]} O-O {[%emt 0:00:12]} 10. Bf4 {[%emt 0:00:06]} Nc6 {[%emt 0:00:09]} 11. Rfd1 {[%emt 0:00:14]} Qb6 {[%emt 0:00:12]} 12. Qb5 {[%emt 0:00:41]} Na5 {[%emt 0:00:03]} 13. Na4 {[%emt 0:00:51]} Qxb5 {[%emt 0:00:28]} 14. cxb5 {[%emt 0:00:02]} d5 {[%emt 0:02:36]} 15. b3 {[%emt 0:00:56]} a6 {[%emt 0:00:11]} 16. b6 {[%emt 0:02:00]} Nd7 {[%emt 0:00:39]} 17. Ne5 {[%emt 0:00:37]} Nxe5 {[%emt 0:00:09]} 18. Bxe5 {[%emt 0:00:02]} Bc6 {[%emt 0:00:48]} 19. Rdc1 {[%emt 0:02:11]} Nb7 {[%emt 0:02:25]} 20. Nb2 {[%emt 0:01:42]} Rfc8 {[%emt 0:02:32]} 21. Nd3 {[%emt 0:00:50]} Bb5 {[%emt 0:02:07]} 22. a4 {[%emt 0:01:08]} Bxd3 {[%emt 0:00:03]} 23. exd3 {[%emt 0:00:01]} a5 {[%emt 0:00:19]} 24. d4 {[%emt 0:00:36]} Rc6 {[%emt 0:00:33]} 25. dxc5 {[%emt 0:00:50]} Bxc5 {[%emt 0:00:29]} 26. Bc7 {[%emt 0:00:38]} Ra6 {[%emt 0:00:46]} 27. Bf1 {[%emt 0:00:38]} Raxb6 {[%emt 0:00:02]} 28. Bxb6 {[%emt 0:00:03]} Rxb6 {[%emt 0:00:01]} 29. Bb5 {[%emt 0:00:09]} Kf8 {[%emt 0:00:07]} 30. Rc2 {[%emt 0:00:09]} Ke7 {[%emt 0:00:03]} 31. Rac1 {[%emt 0:00:11]} Bd6 {[%emt 0:00:35]} 32. Rc8 {[%emt 0:00:24]} Kf6 {[%emt 0:00:55]} 33. Kg2 {[%emt 0:00:04]} Bb4 {[%emt 0:00:03]} 34. Rb8 {[%emt 0:02:18]} Bd6 {[%emt 0:00:03]} 35. Ra8 {[%emt 0:00:36]} Bb4 {[%emt 0:00:01]} 36. Rb8 {[%emt 0:01:41]} Bd6 {[%emt 0:00:02]} 37. Rbc8 {[%emt 0:00:03]} Bb4 {[%emt 0:00:03]} 38. R1c7 {[%emt 0:00:07]} Nd6 {[%emt 0:00:02]} 39. Rf8 {[%emt 0:00:01]} Ke5 {[%emt 0:00:02]} 40. Ra8 {[%emt 0:01:00]} Rb7 {[%emt 0:01:28]} 41. Rxb7 {[%emt 0:00:04]} Nxb7 {[%emt 0:00:02]} 42. Rg8 {[%emt 0:00:15]} Kf6 {[%emt 0:00:11]} 43. Rc8 {[%emt 0:00:23]} Nd6 {[%emt 0:01:03]} 44. Rc7 {[%emt 0:00:06]} g5 {[%emt 0:00:07]} 45. Kf3 {[%emt 0:00:11]} Ke5 {Ke4+} 1/2-1/2

[Event "Nino Khurtsidze Memorial 2019"]
[Site "Vani"]
[Date "2019.09.18"]
[Round "7.4"]
[White "Batsiashvili, Nino"]
[Black "Lomineishvili, Maia"]
[Result "1-0"]
[ECO "A16"]
[WhiteElo "2415"]
[BlackElo "2342"]
[Annotator "NA"]
[PlyCount "77"]
[EventDate "2019.09.17"]
[EventType "tourn"]
[EventCountry "GEO"]
[SourceTitle "playchess.com"]
[Source "ChessBase"]
[SourceQuality "1"]
[TimeControl "900+10"]

1. c4 {[%emt 0:00:00]} Nf6 {[%emt 0:00:00]} 2. Nc3 {[%emt 0:00:00]} b6 {[%emt 0:00:00]} 3. d4 {[%emt 0:00:41]} Bb7 {[%emt 0:00:01]} 4. f3 {[%emt 0:00:03]} d5 {[%emt 0:00:45]} 5. cxd5 {[%emt 0:00:08]} Nxd5 {[%emt 0:00:02]} 6. e4 {[%emt 0:00:02]} Nxc3 {[%emt 0:00:09]} 7. bxc3 {[%emt 0:00:02]} e6 {[%emt 0:01:10]} 8. Be3 {[%emt 0:00:10]} Be7 {[%emt 0:00:27]} 9. Bd3 {[%emt 0:00:27]} Bh4+ {[%emt 0:00:12]} 10. g3 {[%emt 0:00:14]} Bg5 {[%emt 0:00:12]} 11. f4 {[%emt 0:00:09]} Be7 {[%emt 0:00:06]} 12. Nf3 {[%emt 0:00:03]} Nd7 {[%emt 0:00:27]} 13. e5 {[%emt 0:00:08]} h5 {[%emt 0:00:52]} 14. h4 {[%emt 0:00:45]} c5 {[%emt 0:00:25]} 15. O-O {[%emt 0:00:11]} Rc8 {[%emt 0:01:35]} 16. f5 {[%emt 0:01:01]} exf5 {[%emt 0:04:27]} 17. Bxf5 {[%emt 0:00:04]} Rc7 {[%emt 0:00:02]} 18. d5 {[%emt 0:00:51]} Nxe5 {[%emt 0:00:15]} 19. Nxe5 {[%emt 0:00:03]} Qxd5 {[%emt 0:00:14]} 20. Qxd5 {[%emt 0:00:06]} Bxd5 {[%emt 0:00:02]} 21. Rad1 {[%emt 0:00:19]} Be6 {[%emt 0:01:25]} 22. Bxe6 {[%emt 0:00:20]} fxe6 {[%emt 0:00:01]} 23. Ng6 {[%emt 0:00:11]} Rg8 {[%emt 0:00:07]} 24. Nxe7 {[%emt 0:00:22]} Rxe7 {[%emt 0:00:07]} 25. Bg5 {[%emt 0:00:01]} Rd7 {[%emt 0:00:07]} 26. Rxd7 {[%emt 0:00:02]} Kxd7 {[%emt 0:00:03]} 27. Rf7+ {[%emt 0:00:01]} Kc6 {[%emt 0:00:04]} 28. Rxa7 {[%emt 0:00:02]} b5 {[%emt 0:01:22]} 29. Kf2 {[%emt 0:00:36]} Kd5 {[%emt 0:00:14]} 30. Ke2 {[%emt 0:00:08]} Kc4 {[%emt 0:00:07]} 31. Be3 {[%emt 0:00:01]} Kxc3 {[%emt 0:00:38]} 32. Bxc5 {[%emt 0:00:13]} g5 {[%emt 0:00:06]} 33. a3 {[%emt 0:00:20]} gxh4 {[%emt 0:00:34]} 34. gxh4 {[%emt 0:00:01]} Rg4 {[%emt 0:00:48]} 35. Be7 {[%emt 0:00:04]} e5 {[%emt 0:01:07]} 36. Ke3 {[%emt 0:00:06]} Rg1 {[%emt 0:00:09]} 37. Rc7+ {[%emt 0:00:12]} Kb3 {[%emt 0:00:03]} 38. Rc5 {[%emt 0:00:16]} Rg3+ {[%emt 0:01:06]} 39. Ke4 1-0

[Event "Nino Khurtsidze Memorial 2019"]
[Site "Vani"]
[Date "2019.09.18"]
[Round "7.5"]
[White "Khotenashvili, Bela"]
[Black "Kachiani-Gersinska, Ketino"]
[Result "1/2-1/2"]
[ECO "D00"]
[WhiteElo "2453"]
[BlackElo "2317"]
[Annotator "ChessBase"]
[PlyCount "153"]
[EventDate "2019.09.17"]
[EventType "tourn"]
[EventCountry "GEO"]
[SourceTitle "playchess.com"]
[Source "ChessBase"]
[SourceQuality "1"]
[TimeControl "900+10"]

1. d4 {[%emt 0:00:00]} d5 {[%emt 0:00:00]} 2. Bf4 {[%emt 0:00:00]} Nf6 {[%emt 0:00:14]} 3. e3 {[%emt 0:00:03]} c5 {[%emt 0:00:21]} 4. dxc5 {[%emt 0:00:49]} Qa5+ {[%emt 0:00:12]} 5. Nd2 {[%emt 0:00:02]} Qxc5 {[%emt 0:00:46]} 6. c4 {[%emt 0:00:15]} Nc6 {[%emt 0:00:16]} 7. a3 {[%emt 0:00:44]} Bg4 {[%emt 0:03:44]} 8. Qa4 {[%emt 0:01:58]} dxc4 {[%emt 0:03:55]} 9. Bxc4 {[%emt 0:00:14]} Rd8 {[%emt 0:00:31]} 10. b4 {[%emt 0:02:46]} Qh5 {[%emt 0:00:54]} 11. Ngf3 {[%emt 0:03:38]} a6 {[%emt 0:02:20]} 12. O-O {[%emt 0:01:08]} Bd7 {[%emt 0:00:18]} 13. Qb3 {[%emt 0:00:27]} e6 {[%emt 0:00:14]} 14. Be2 {[%emt 0:00:22]} Qd5 {[%emt 0:00:18]} 15. Qb2 {[%emt 0:00:31]} Qf5 {[%emt 0:01:24]} 16. Nc4 {[%emt 0:01:10]} Bc8 {[%emt 0:00:38]} 17. Nh4 {[%emt 0:01:07]} Qe4 {[%emt 0:00:07]} 18. f3 {[%emt 0:00:06]} Qd5 {[%emt 0:00:07]} 19. Rad1 {[%emt 0:00:09]} Qh5 {[%emt 0:00:07]} 20. Rxd8+ {[%emt 0:00:27]} Nxd8 {[%emt 0:00:10]} 21. Bg3 {[%emt 0:00:33]} Be7 {[%emt 0:00:13]} 22. Nb6 {[%emt 0:00:31]} Bd7 {[%emt 0:00:01]} 23. Nxd7 {[%emt 0:00:37]} Nxd7 {[%emt 0:00:15]} 24. Qxg7 {[%emt 0:00:03]} Bf6 {[%emt 0:00:15]} 25. Qg4 {[%emt 0:00:02]} Qxg4 {[%emt 0:00:06]} 26. fxg4 {[%emt 0:00:01]} Bb2 {[%emt 0:00:09]} 27. a4 {[%emt 0:00:09]} Nc6 {[%emt 0:00:11]} 28. b5 {[%emt 0:00:19]} axb5 {[%emt 0:00:02]} 29. axb5 {[%emt 0:00:24]} Nce5 {[%emt 0:00:01]} 30. Rb1 {[%emt 0:00:10]} Ba3 {[%emt 0:00:03]} 31. Ra1 {[%emt 0:00:03]} Be7 {[%emt 0:00:08]} 32. Ra8+ {[%emt 0:00:10]} Bd8 {[%emt 0:00:02]} 33. h3 {[%emt 0:00:12]} O-O {[%emt 0:00:08]} 34. Nf3 {[%emt 0:00:07]} Bc7 {[%emt 0:00:12]} 35. Rxf8+ {[%emt 0:00:07]} Kxf8 {[%emt 0:00:01]} 36. Nxe5 {[%emt 0:00:16]} Bxe5 {[%emt 0:00:07]} 37. Bf4 {[%emt 0:00:29]} b6 {[%emt 0:00:09]} 38. Kf2 {[%emt 0:00:03]} Kg7 {[%emt 0:00:19]} 39. g3 {[%emt 0:00:11]} h6 {[%emt 0:00:51]} 40. Kf3 {[%emt 0:00:06]} Bc3 {[%emt 0:00:14]} 41. Bd6 {[%emt 0:00:13]} Be5 {[%emt 0:00:06]} 42. Be7 {[%emt 0:00:05]} Bc3 {[%emt 0:00:08]} 43. h4 {[%emt 0:00:05]} Ne5+ {[%emt 0:00:11]} 44. Ke4 {[%emt 0:00:05]} Nd7 {[%emt 0:00:05]} 45. Bd6 {[%emt 0:00:06]} Kf6 {[%emt 0:00:14]} 46. Bc7 {[%emt 0:00:35]} Nc5+ {[%emt 0:00:18]} 47. Kf3 {[%emt 0:00:12]} Nd7 {[%emt 0:00:04]} 48. Bd8+ {[%emt 0:00:18]} Kg7 {[%emt 0:00:05]} 49. Be7 {[%emt 0:00:21]} f6 {[%emt 0:00:14]} 50. Ke4 {[%emt 0:00:08]} Kf7 {[%emt 0:00:06]} 51. Bd6 {[%emt 0:00:06]} Bb2 {[%emt 0:00:29]} 52. Bf4 {[%emt 0:00:06]} Nc5+ {[%emt 0:00:11]} 53. Kf3 {[%emt 0:00:03]} Kg7 {[%emt 0:00:07]} 54. Bc7 {[%emt 0:00:15]} Nd7 {[%emt 0:00:01]} 55. Kf2 {[%emt 0:00:03]} Be5 {[%emt 0:00:11]} 56. Bxe5 {[%emt 0:00:20]} Nxe5 {[%emt 0:00:02]} 57. Ke1 {[%emt 0:00:04]} Kf7 {[%emt 0:01:04]} 58. Kd2 {[%emt 0:00:03]} Ke7 {[%emt 0:00:04]} 59. Kc3 {[%emt 0:00:02]} Kd6 {[%emt 0:00:04]} 60. Kd4 {[%emt 0:00:02]} Nd7 {[%emt 0:00:21]} 61. Ke4 {[%emt 0:00:13]} Ne5 {[%emt 0:00:06]} 62. Kf4 {[%emt 0:00:09]} Ng6+ {[%emt 0:00:04]} 63. Ke4 {[%emt 0:00:06]} Ne5 {[%emt 0:00:06]} 64. Bd1 {[%emt 0:00:23]} Ng6 {[%emt 0:00:08]} 65. Bc2 {[%emt 0:00:26]} Ne7 {[%emt 0:00:35]} 66. Bd3 {[%emt 0:00:13]} Ng6 {[%emt 0:00:17]} 67. Bc2 {[%emt 0:00:24]} Ne7 {[%emt 0:00:02]} 68. Kd4 {[%emt 0:00:11]} Nd5 {[%emt 0:00:09]} 69. Bd3 {[%emt 0:00:14]} Ne7 {[%emt 0:00:37]} 70. Be4 {[%emt 0:00:03]} Kd7 {[%emt 0:00:09]} 71. Bc2 {[%emt 0:00:27]} Kd6 {[%emt 0:00:02]} 72. Bb3 {[%emt 0:00:04]} Ng6 {[%emt 0:00:03]} 73. Bc2 {[%emt 0:00:17]} Ne5 {[%emt 0:00:02]} 74. Bd1 {[%emt 0:00:03]} Nd7 {[%emt 0:00:10]} 75. Ke4 Nc5+ {[%emt 0:00:13]} 76. Kd4 {[%emt 0:00:18]} Nd7 {[%emt 0:00:02]} 77. Ke4 {Ke5+} 1/2-1/2

[Event "Nino Khurtsidze Memorial 2019"]
[Site "Vani"]
[Date "2019.09.18"]
[Round "8.1"]
[White "Mamedjarova, Zeinab"]
[Black "Kachiani-Gersinska, Ketino"]
[Result "1-0"]
[ECO "A48"]
[WhiteElo "2300"]
[BlackElo "2317"]
[Annotator "NA"]
[PlyCount "99"]
[EventDate "2019.09.17"]
[EventType "tourn"]
[EventCountry "GEO"]
[SourceTitle "playchess.com"]
[Source "ChessBase"]
[SourceQuality "1"]
[TimeControl "900+10"]

1. d4 {[%emt 0:00:00]} Nf6 {[%emt 0:00:00]} 2. Nf3 {[%emt 0:00:00]} g6 {[%emt 0:00:00]} 3. c4 {[%emt 0:00:02]} Bg7 {[%emt 0:00:00]} 4. Nc3 {[%emt 0:00:01]} O-O {[%emt 0:00:03]} 5. e3 {[%emt 0:00:06]} d6 {[%emt 0:00:14]} 6. Be2 {[%emt 0:00:05]} c5 {[%emt 0:00:10]} 7. O-O {[%emt 0:00:05]} Nc6 {[%emt 0:00:12]} 8. h3 {[%emt 0:00:10]} cxd4 {[%emt 0:00:12]} 9. exd4 {[%emt 0:00:01]} d5 {[%emt 0:00:01]} 10. Bg5 {[%emt 0:00:58]} Be6 {[%emt 0:01:48]} 11. c5 {[%emt 0:01:28]} Ne4 {[%emt 0:02:51]} 12. Bf4 {[%emt 0:00:18]} a6 {[%emt 0:02:35]} 13. Na4 {[%emt 0:00:56]} g5 {[%emt 0:02:16]} 14. Bh2 {[%emt 0:01:54]} f5 {[%emt 0:01:11]} 15. Nb6 {[%emt 0:00:16]} g4 {[%emt 0:00:54]} 16. Ne5 {[%emt 0:01:25]} g3 {[%emt 0:00:18]} 17. Bxg3 {[%emt 0:01:03]} Nxg3 {[%emt 0:01:55]} 18. Nxc6 {[%emt 0:00:25]} bxc6 {[%emt 0:00:23]} 19. fxg3 {[%emt 0:00:58]} Rb8 {[%emt 0:00:12]} 20. Bxa6 {[%emt 0:00:24]} Rxb6 {[%emt 0:00:02]} 21. cxb6 {[%emt 0:00:01]} Qxb6 {[%emt 0:00:01]} 22. Qe2 {[%emt 0:00:30]} Bxd4+ {[%emt 0:00:58]} 23. Kh2 {[%emt 0:00:01]} Bf7 {[%emt 0:00:00]} 24. Rxf5 {[%emt 0:00:18]} Qxb2 {[%emt 0:00:22]} 25. Qxb2 {[%emt 0:03:54]} Bxb2 {[%emt 0:00:03]} 26. Raf1 {[%emt 0:00:06]} Bf6 {[%emt 0:00:04]} 27. Bb7 {[%emt 0:00:13]} Be6 {[%emt 0:00:30]} 28. R5f3 {[%emt 0:00:06]} c5 {[%emt 0:00:05]} 29. Re1 {[%emt 0:00:22]} Bf7 {[%emt 0:00:10]} 30. Rf5 {[%emt 0:00:16]} Rd8 {[%emt 0:00:10]} 31. a4 {[%emt 0:00:04]} Rd7 {[%emt 0:00:31]} 32. Rb1 {[%emt 0:00:43]} Bc3 {[%emt 0:00:26]} 33. Rb5 {[%emt 0:00:36]} e6 {[%emt 0:00:49]} 34. Rg5+ {[%emt 0:00:13]} Bg6 {[%emt 0:00:01]} 35. Bc8 {[%emt 0:00:06]} Rd6 {[%emt 0:00:18]} 36. Rxc5 {[%emt 0:00:42]} d4 {[%emt 0:00:06]} 37. Bb7 {[%emt 0:00:46]} Kf7 {[%emt 0:00:11]} 38. a5 {[%emt 0:00:10]} Bd3 {[%emt 0:00:53]} 39. Bf3 {[%emt 0:00:48]} Kf6 {[%emt 0:00:11]} 40. Rg8 {[%emt 0:00:09]} Ba6 {[%emt 0:00:18]} 41. Rf8+ {[%emt 0:00:12]} Ke7 {[%emt 0:00:03]} 42. Rh8 {[%emt 0:00:08]} Bd3 {[%emt 0:00:02]} 43. Rc7+ {[%emt 0:00:20]} Kf6 {[%emt 0:00:01]} 44. Rf8+ {[%emt 0:00:06]} Kg6 {[%emt 0:00:04]} 45. Ra8 {[%emt 0:00:33]} e5 {[%emt 0:00:07]} 46. Rc6 {[%emt 0:00:06]} Rxc6 {[%emt 0:00:04]} 47. Bxc6 e4 48. a6 {[%emt 0:00:03]} Bxa6 {[%emt 0:00:22]} 49. Bxe4+ {[%emt 0:00:01]} Kf6 {[%emt 0:00:04]} 50. Rxa6+ {[%emt 0:00:02]} 1-0

[Event "Nino Khurtsidze Memorial 2019"]
[Site "Vani"]
[Date "2019.09.18"]
[Round "8.2"]
[White "Lomineishvili, Maia"]
[Black "Khotenashvili, Bela"]
[Result "1-0"]
[ECO "A45"]
[WhiteElo "2342"]
[BlackElo "2453"]
[Annotator "ChessBase"]
[PlyCount "73"]
[EventDate "2019.09.17"]
[EventType "tourn"]
[EventCountry "GEO"]
[SourceTitle "playchess.com"]
[Source "ChessBase"]
[SourceQuality "1"]
[TimeControl "900+10"]

1. d4 {[%emt 0:00:00]} Nf6 {[%emt 0:00:00]} 2. Nc3 {[%emt 0:00:00]} d5 {[%emt 0:00:04]} 3. Bf4 {[%emt 0:00:01]} g6 {[%emt 0:00:36]} 4. Qd2 {[%emt 0:00:24]} Bg7 {[%emt 0:00:03]} 5. Bh6 {[%emt 0:00:22]} Bxh6 {[%emt 0:00:29]} 6. Qxh6 {[%emt 0:00:02]} c5 {[%emt 0:00:12]} 7. Nf3 {[%emt 0:01:11]} cxd4 {[%emt 0:01:52]} 8. Nxd4 {[%emt 0:00:14]} e5 {[%emt 0:00:11]} 9. Nb3 {[%emt 0:01:09]} d4 {[%emt 0:01:22]} 10. O-O-O {[%emt 0:04:01]} Qe7 {[%emt 0:00:09]} 11. Nb5 {[%emt 0:02:03]} Ng4 {[%emt 0:02:02]} 12. Qg7 {[%emt 0:01:21]} Rf8 {[%emt 0:00:03]} 13. N3xd4 {[%emt 0:00:30]} Nxf2 {[%emt 0:06:04]} 14. Nf5 {[%emt 0:00:33]} gxf5 {[%emt 0:03:14]} 15. Nd6+ {[%emt 0:00:02]} Kd7 {[%emt 0:00:43]} 16. Nxf5+ {[%emt 0:00:23]} Nxd1 {[%emt 0:00:01]} 17. Nxe7 {[%emt 0:00:05]} Kxe7 {[%emt 0:00:02]} 18. Qxe5+ {[%emt 0:00:16]} Be6 {[%emt 0:00:01]} 19. Qc5+ {[%emt 0:01:24]} Ke8 {[%emt 0:00:02]} 20. e4 {[%emt 0:00:52]} Nd7 {[%emt 0:00:48]} 21. Bb5 {[%emt 0:00:26]} Nxb2 {[%emt 0:00:04]} 22. Kxb2 {[%emt 0:00:11]} a6 {[%emt 0:00:04]} 23. Bxd7+ {[%emt 0:00:05]} Bxd7 {[%emt 0:00:00]} 24. Rd1 {[%emt 0:00:11]} Rc8 {[%emt 0:00:24]} 25. Qd6 {[%emt 0:00:13]} Be6 {[%emt 0:00:07]} 26. Rd3 {[%emt 0:00:31]} Rg8 {[%emt 0:00:06]} 27. Rg3 {[%emt 0:00:36]} Rxg3 {[%emt 0:00:22]} 28. Qxg3 {[%emt 0:00:02]} Rc5 {[%emt 0:00:14]} 29. Qg8+ {[%emt 0:00:10]} Kd7 {[%emt 0:00:06]} 30. Qxh7 {[%emt 0:00:04]} Rb5+ {[%emt 0:00:01]} 31. Kc3 {[%emt 0:00:04]} Bxa2 {[%emt 0:00:08]} 32. h4 {[%emt 0:00:04]} Be6 {[%emt 0:00:21]} 33. h5 {[%emt 0:00:05]} Rg5 {[%emt 0:00:11]} 34. h6 {[%emt 0:00:21]} Rxg2 {[%emt 0:00:15]} 35. Qh8 {[%emt 0:00:06]} f5 {[%emt 0:00:12]} 36. Qd4+ {[%emt 0:00:26]} Kc6 {[%emt 0:00:09]} 37. h7 {[%emt 0:00:11]} 1-0

[Event "Nino Khurtsidze Memorial 2019"]
[Site "Vani"]
[Date "2019.09.18"]
[Round "8.3"]
[White "Javakhishvili, Lela"]
[Black "Batsiashvili, Nino"]
[Result "1/2-1/2"]
[ECO "E15"]
[WhiteElo "2458"]
[BlackElo "2415"]
[Annotator "ChessBase"]
[PlyCount "115"]
[EventDate "2019.09.17"]
[EventType "tourn"]
[EventCountry "GEO"]
[SourceTitle "playchess.com"]
[Source "ChessBase"]
[SourceQuality "1"]
[TimeControl "900+10"]

1. d4 {[%emt 0:00:00]} Nf6 {[%emt 0:00:00]} 2. c4 {[%emt 0:00:00]} e6 {[%emt 0:00:00]} 3. Nf3 {[%emt 0:00:00]} b6 {[%emt 0:00:00]} 4. g3 {[%emt 0:00:00]} Bb4+ {[%emt 0:00:00]} 5. Nbd2 {[%emt 0:00:00]} O-O {[%emt 0:00:24]} 6. Bg2 {[%emt 0:00:01]} d5 {[%emt 0:00:07]} 7. O-O {[%emt 0:00:10]} Bd6 {[%emt 0:00:21]} 8. Ne5 {[%emt 0:00:19]} Bb7 {[%emt 0:00:01]} 9. cxd5 {[%emt 0:00:10]} exd5 {[%emt 0:00:08]} 10. Ndc4 {[%emt 0:00:05]} Be7 {[%emt 0:00:12]} 11. Ne3 {[%emt 0:00:41]} g6 {[%emt 0:00:30]} 12. b3 {[%emt 0:00:05]} Nbd7 {[%emt 0:01:20]} 13. Bb2 {[%emt 0:00:08]} Ne4 {[%emt 0:01:17]} 14. Qc2 {[%emt 0:00:46]} Nxe5 {[%emt 0:00:27]} 15. dxe5 {[%emt 0:00:03]} f5 {[%emt 0:00:08]} 16. exf6 {[%emt 0:00:31]} Bxf6 {[%emt 0:00:16]} 17. Rad1 {[%emt 0:00:12]} Bxb2 {[%emt 0:02:50]} 18. Bxe4 {[%emt 0:00:12]} Be5 {[%emt 0:00:47]} 19. Bxd5+ {[%emt 0:02:19]} Bxd5 {[%emt 0:00:01]} 20. Rxd5 {[%emt 0:00:01]} Qe7 {[%emt 0:00:23]} 21. Qc4 {[%emt 0:02:25]} Kh8 {[%emt 0:00:18]} 22. Rfd1 {[%emt 0:01:13]} Bd6 {[%emt 0:00:34]} 23. Qd4+ {[%emt 0:00:39]} Kg8 {[%emt 0:00:57]} 24. Ng4 {[%emt 0:00:08]} Qg7 {[%emt 0:00:07]} 25. Qxg7+ {[%emt 0:00:15]} Kxg7 {[%emt 0:00:00]} 26. e4 {[%emt 0:00:37]} h5 {[%emt 0:01:36]} 27. e5 {[%emt 0:00:23]} hxg4 {[%emt 0:01:03]} 28. exd6 {[%emt 0:00:02]} c5 {[%emt 0:00:59]} 29. Rg5 {[%emt 0:00:41]} Rad8 {[%emt 0:00:08]} 30. Rxg4 {[%emt 0:00:03]} Rf6 {[%emt 0:00:09]} 31. Re4 {[%emt 0:00:23]} Rfxd6 {[%emt 0:01:09]} 32. Rxd6 {[%emt 0:00:15]} Rxd6 {[%emt 0:00:00]} 33. Re7+ {[%emt 0:00:02]} Kf6 {[%emt 0:00:01]} 34. Rxa7 {[%emt 0:00:01]} Ke5 {[%emt 0:00:23]} 35. h4 {[%emt 0:01:41]} Ke4 {[%emt 0:02:02]} 36. Kg2 {[%emt 0:00:06]} b5 {[%emt 0:00:02]} 37. Rc7 {[%emt 0:03:12]} Kd4 {[%emt 0:00:02]} 38. Kf3 {[%emt 0:00:06]} c4 {[%emt 0:01:20]} 39. Ke2 {[%emt 0:00:32]} Ra6 {[%emt 0:00:28]} 40. Rd7+ {[%emt 0:00:13]} Kc3 {[%emt 0:00:01]} 41. Rd2 {[%emt 0:00:53]} Re6+ {[%emt 0:00:07]} 42. Kd1 {[%emt 0:00:01]} cxb3 {[%emt 0:00:01]} 43. axb3 {[%emt 0:00:04]} Kxb3 {[%emt 0:00:05]} 44. f4 {[%emt 0:00:13]} b4 {[%emt 0:00:10]} 45. Rf2 {[%emt 0:00:09]} Re3 {[%emt 0:00:12]} 46. g4 {[%emt 0:00:07]} Rh3 {[%emt 0:00:01]} 47. h5 {[%emt 0:00:13]} gxh5 {[%emt 0:00:03]} 48. g5 {[%emt 0:00:01]} Rg3 {[%emt 0:00:05]} 49. f5 {[%emt 0:00:35]} Rxg5 {[%emt 0:00:01]} 50. f6 {[%emt 0:00:01]} Rg8 {[%emt 0:00:01]} 51. f7 {[%emt 0:00:02]} Rf8 {[%emt 0:00:00]} 52. Rf3+ {[%emt 0:00:04]} Kc4 {[%emt 0:00:18]} 53. Rf4+ {[%emt 0:00:03]} Kc5 {[%emt 0:00:07]} 54. Rf5+ {[%emt 0:00:06]} Kd4 {[%emt 0:00:08]} 55. Kc2 {[%emt 0:00:09]} h4 {[%emt 0:00:09]} 56. Rf4+ {[%emt 0:00:03]} Ke5 {[%emt 0:00:05]} 57. Rxh4 {[%emt 0:00:03]} Rxf7 {[%emt 0:00:00]} 58. Rxb4 1/2-1/2